[Event "Late-Titled-Tuesday-Blitz-June-04-2024"]
[Site "Chess.com"]
[Date "2024.06.04"]
[Round "3"]
[White "WPWPWP-2015"]
[Black "malti"]
[Result "1-0"]
[WhiteElo "2525"]
[BlackElo "2117"]
[TimeControl "180+1"]
[EndTime "14:26:47 PDT"]
[Termination "WPWPWP-2015 won on time"]

1. d4 {[%clk 0:03:00.9]} 1... Nf6 {[%clk 0:02:58.4]} 2. c4 {[%clk 0:03:00.4]}
2... g6 {[%clk 0:02:58.4]} 3. Nf3 {[%clk 0:02:58.1]} 3... Bg7 {[%clk 0:02:58.5]}
4. g3 {[%clk 0:02:56.5]} 4... O-O {[%clk 0:02:58.3]} 5. Bg2 {[%clk 0:02:56.4]}
5... d6 {[%clk 0:02:58.9]} 6. O-O {[%clk 0:02:56.2]} 6... Bg4 {[%clk 0:02:58.8]}
7. Qb3 {[%clk 0:02:54.4]} 7... Nc6 {[%clk 0:02:44.9]} 8. e3 {[%clk 0:02:47.8]}
8... Rb8 {[%clk 0:02:38.5]} 9. Nc3 {[%clk 0:02:42.1]} 9... Qd7 {[%clk 0:02:38]}
10. Re1 {[%clk 0:02:39.2]} 10... Qf5 {[%clk 0:02:18.2]} 11. Nh4 {[%clk
0:02:32.5]} 11... Qh5 {[%clk 0:02:18.3]} 12. h3 {[%clk 0:02:24.3]} 12... Bxh3
{[%clk 0:01:46.1]} 13. Bxh3 {[%clk 0:02:25.2]} 13... g5 {[%clk 0:01:46.5]} 14.
Qd1 {[%clk 0:02:25.2]} 14... Qxd1 {[%clk 0:01:43.3]} 15. Rxd1 {[%clk 0:02:26.1]}
15... gxh4 {[%clk 0:01:43.8]} 16. gxh4 {[%clk 0:02:26.7]} 16... e5 {[%clk
0:01:14.3]} 17. Nb5 {[%clk 0:02:15.3]} 17... Ne8 {[%clk 0:01:05]} 18. d5 {[%clk
0:02:01.6]} 18... Na5 {[%clk 0:00:52.7]} 19. b3 {[%clk 0:01:58.3]} 19... a6
{[%clk 0:00:43.6]} 20. Nc3 {[%clk 0:01:57.4]} 20... f5 {[%clk 0:00:40.4]} 21. e4
{[%clk 0:01:54.5]} 21... f4 {[%clk 0:00:36.5]} 22. Bd2 {[%clk 0:01:52.8]} 22...
b6 {[%clk 0:00:29.7]} 23. Be6+ {[%clk 0:01:50.8]} 23... Kh8 {[%clk 0:00:28.2]}
24. f3 {[%clk 0:01:50.1]} 24... Nb7 {[%clk 0:00:28.3]} 25. Kh2 {[%clk 0:01:47]}
25... Nc5 {[%clk 0:00:24.6]} 26. Bg4 {[%clk 0:01:44.5]} 26... Nf6 {[%clk
0:00:22]} 27. Bf5 {[%clk 0:01:38.7]} 27... Nh5 {[%clk 0:00:15.3]} 28. Ne2 {[%clk
0:01:37.5]} 28... Bf6 {[%clk 0:00:13.3]} 29. Kh3 {[%clk 0:01:33]} 29... Rg8
{[%clk 0:00:12]} 30. Bg4 {[%clk 0:01:30.9]} 30... Ng3 {[%clk 0:00:10.4]} 31.
Nxg3 {[%clk 0:01:27.8]} 31... fxg3 {[%clk 0:00:11.3]} 32. Be3 {[%clk 0:01:17.9]}
32... Rg7 {[%clk 0:00:06.8]} 33. Rd2 {[%clk 0:01:13.8]} 33... Rbg8 {[%clk
0:00:05.2]} 34. Rg1 {[%clk 0:01:09.4]} 1-0

[Event "Late-Titled-Tuesday-Blitz-June-04-2024"]
[Site "Chess.com"]
[Date "2024.06.04"]
[Round "3"]
[White "MaxLeto"]
[Black "MaestroCheck"]
[Result "0-1"]
[WhiteElo "2439"]
[BlackElo "2622"]
[TimeControl "180+1"]
[EndTime "14:26:48 PDT"]
[Termination "MaestroCheck won on time"]

1. g4 {[%clk 0:02:21.5]} 1... d5 {[%clk 0:02:59.2]} 2. Bg2 {[%clk 0:02:18.1]}
2... c6 {[%clk 0:02:49.4]} 3. h3 {[%clk 0:02:17.5]} 3... h5 {[%clk 0:02:48.7]}
4. g5 {[%clk 0:02:15]} 4... e5 {[%clk 0:02:48]} 5. d4 {[%clk 0:02:15]} 5... e4
{[%clk 0:02:47.4]} 6. c4 {[%clk 0:02:14]} 6... Ne7 {[%clk 0:02:43.3]} 7. Nc3
{[%clk 0:02:07.7]} 7... Ng6 {[%clk 0:02:41.8]} 8. h4 {[%clk 0:02:05.7]} 8... Be6
{[%clk 0:02:37.3]} 9. Qb3 {[%clk 0:01:53.9]} 9... Qd7 {[%clk 0:02:28.1]} 10. Be3
{[%clk 0:01:17.4]} 10... Bd6 {[%clk 0:02:21.4]} 11. Nh3 {[%clk 0:01:08.5]} 11...
Nxh4 {[%clk 0:02:17.3]} 12. Bf1 {[%clk 0:01:05.9]} 12... Nf5 {[%clk 0:02:15.9]}
13. O-O-O {[%clk 0:00:47.2]} 13... Nxe3 {[%clk 0:01:54.6]} 14. fxe3 {[%clk
0:00:47]} 14... Na6 {[%clk 0:01:47.8]} 15. cxd5 {[%clk 0:00:17.2]} 15... cxd5
{[%clk 0:01:46.4]} 16. Nf4 {[%clk 0:00:17.8]} 16... Bxf4 {[%clk 0:01:45.7]} 17.
exf4 {[%clk 0:00:17.7]} 17... g6 {[%clk 0:01:39.1]} 18. e3 {[%clk 0:00:17.3]}
18... Nc7 {[%clk 0:01:35.1]} 19. Qxb7 {[%clk 0:00:09.9]} 19... O-O {[%clk
0:01:31]} 20. Bb5 {[%clk 0:00:06.4]} 20... Qe7 {[%clk 0:01:28.1]} 21. Ba4 {[%clk
0:00:01.8]} 21... Rfb8 {[%clk 0:01:26.3]} 22. Qc6 {[%clk 0:00:02]} 22... Rb6
{[%clk 0:01:26.3]} 23. Qc5 {[%clk 0:00:02.3]} 23... Qd8 {[%clk 0:01:21.1]} 24.
Bb3 {[%clk 0:00:02.2]} 24... Na6 {[%clk 0:01:10.9]} 25. Qa5 {[%clk 0:00:01.8]}
25... Nb4 {[%clk 0:01:11.5]} 26. Kb1 {[%clk 0:00:01.2]} 26... Qd6 {[%clk
0:01:03.5]} 27. Na4 {[%clk 0:00:01.4]} 27... Nd3 {[%clk 0:00:53.4]} 0-1

[Event "Late-Titled-Tuesday-Blitz-June-04-2024"]
[Site "Chess.com"]
[Date "2024.06.04"]
[Round "3"]
[White "duone"]
[Black "jk13"]
[Result "1-0"]
[WhiteElo "2393"]
[BlackElo "2667"]
[TimeControl "180+1"]
[EndTime "14:26:52 PDT"]
[Termination "duone won by resignation"]

1. e4 {[%clk 0:03:00.9]} 1... e5 {[%clk 0:02:59.8]} 2. Nf3 {[%clk 0:02:56.2]}
2... Nc6 {[%clk 0:03:00.4]} 3. Bb5 {[%clk 0:02:56.8]} 3... a6 {[%clk 0:03:00.8]}
4. Ba4 {[%clk 0:02:56.4]} 4... Nf6 {[%clk 0:03:01.5]} 5. O-O {[%clk 0:02:56.1]}
5... b5 {[%clk 0:03:02.3]} 6. Bb3 {[%clk 0:02:56.1]} 6... Bc5 {[%clk 0:03:03.2]}
7. c3 {[%clk 0:02:56.2]} 7... d6 {[%clk 0:03:03.8]} 8. d4 {[%clk 0:02:56.6]}
8... Bb6 {[%clk 0:03:04.5]} 9. Re1 {[%clk 0:02:54.1]} 9... O-O {[%clk
0:03:03.5]} 10. a4 {[%clk 0:02:54.5]} 10... Bg4 {[%clk 0:03:01.8]} 11. Be3
{[%clk 0:02:44.7]} 11... Rb8 {[%clk 0:02:52.9]} 12. Na3 {[%clk 0:02:30.1]} 12...
Bxf3 {[%clk 0:02:26.5]} 13. gxf3 {[%clk 0:02:28.5]} 13... Nh5 {[%clk 0:02:26.8]}
14. Kh1 {[%clk 0:02:23.3]} 14... Qf6 {[%clk 0:02:24.7]} 15. axb5 {[%clk
0:02:17.8]} 15... axb5 {[%clk 0:02:18.6]} 16. Nxb5 {[%clk 0:02:17.6]} 16... Ne7
{[%clk 0:02:07.8]} 17. Rg1 {[%clk 0:02:10.5]} 17... h6 {[%clk 0:02:08.2]} 18.
Na3 {[%clk 0:01:55.9]} 18... exd4 {[%clk 0:01:46]} 19. cxd4 {[%clk 0:01:54.6]}
19... c5 {[%clk 0:01:43.8]} 20. d5 {[%clk 0:01:52.8]} 20... Ng6 {[%clk
0:01:30.2]} 21. Nc4 {[%clk 0:01:47.3]} 21... Bc7 {[%clk 0:01:23.4]} 22. Bc2
{[%clk 0:01:25.6]} 22... Ra8 {[%clk 0:01:21.8]} 23. Rxa8 {[%clk 0:01:21.2]}
23... Rxa8 {[%clk 0:01:22.7]} 24. Bd3 {[%clk 0:01:19.1]} 24... Nh4 {[%clk
0:00:51.8]} 25. Be2 {[%clk 0:00:57.8]} 25... Nf4 {[%clk 0:00:50.6]} 26. Bxf4
{[%clk 0:00:53.3]} 26... Qxf4 {[%clk 0:00:50.4]} 27. Qd2 {[%clk 0:00:47.5]}
27... Qf6 {[%clk 0:00:43.3]} 28. f4 {[%clk 0:00:47.6]} 28... Ng6 {[%clk
0:00:40.3]} 29. f5 {[%clk 0:00:44.2]} 29... Ne5 {[%clk 0:00:36.7]} 30. Nxe5
{[%clk 0:00:43]} 30... Qxe5 {[%clk 0:00:32.4]} 31. f3 {[%clk 0:00:43.4]} 31...
Kf8 {[%clk 0:00:29.9]} 32. Qc3 {[%clk 0:00:43.6]} 32... Qxc3 {[%clk 0:00:25.3]}
33. bxc3 {[%clk 0:00:44.5]} 33... Ra2 {[%clk 0:00:22.2]} 34. Bc4 {[%clk
0:00:41.6]} 34... Bd8 {[%clk 0:00:21.3]} 35. Bxa2 {[%clk 0:00:40.3]} 1-0

[Event "Late-Titled-Tuesday-Blitz-June-04-2024"]
[Site "Chess.com"]
[Date "2024.06.04"]
[Round "3"]
[White "Zorbos"]
[Black "StoreySniper"]
[Result "1-0"]
[WhiteElo "2723"]
[BlackElo "2480"]
[TimeControl "180+1"]
[EndTime "14:26:53 PDT"]
[Termination "Zorbos won on time"]

1. d4 {[%clk 0:02:56.4]} 1... g6 {[%clk 0:03:00.9]} 2. e4 {[%clk 0:02:55.4]}
2... Bg7 {[%clk 0:03:01.4]} 3. Nf3 {[%clk 0:02:55.6]} 3... c5 {[%clk 0:03:02]}
4. dxc5 {[%clk 0:02:55.3]} 4... Qa5+ {[%clk 0:03:02.3]} 5. Nc3 {[%clk
0:02:49.9]} 5... Bxc3+ {[%clk 0:03:01.6]} 6. bxc3 {[%clk 0:02:49.8]} 6... Qxc3+
{[%clk 0:03:02.5]} 7. Bd2 {[%clk 0:02:47.5]} 7... Qxc5 {[%clk 0:03:03.1]} 8. Bd3
{[%clk 0:02:44]} 8... d6 {[%clk 0:03:03.3]} 9. O-O {[%clk 0:02:44]} 9... Nd7
{[%clk 0:03:03.9]} 10. Re1 {[%clk 0:02:25.9]} 10... Ngf6 {[%clk 0:03:02.9]} 11.
Be3 {[%clk 0:02:24.2]} 11... Qc7 {[%clk 0:03:02.6]} 12. Bd4 {[%clk 0:02:24.7]}
12... O-O {[%clk 0:03:01.1]} 13. e5 {[%clk 0:02:24.9]} 13... dxe5 {[%clk
0:02:56.1]} 14. Nxe5 {[%clk 0:02:25.8]} 14... b6 {[%clk 0:02:48.9]} 15. a4
{[%clk 0:01:59.9]} 15... Bb7 {[%clk 0:02:48.6]} 16. a5 {[%clk 0:01:59.2]} 16...
Rad8 {[%clk 0:02:38.7]} 17. axb6 {[%clk 0:01:53.7]} 17... axb6 {[%clk
0:02:38.8]} 18. Nxd7 {[%clk 0:01:45.6]} 18... Rxd7 {[%clk 0:02:28.3]} 19. Bb2
{[%clk 0:01:45.5]} 19... Qc6 {[%clk 0:02:20.1]} 20. f3 {[%clk 0:01:46]} 20...
Nh5 {[%clk 0:01:38.1]} 21. Qd2 {[%clk 0:01:30.2]} 21... f6 {[%clk 0:01:07.7]}
22. Kh1 {[%clk 0:01:29.9]} 22... e5 {[%clk 0:01:01.1]} 23. Qb4 {[%clk
0:01:24.8]} 23... Kg7 {[%clk 0:00:38.8]} 24. Bb5 {[%clk 0:01:20.4]} 24... Qd6
{[%clk 0:00:23]} 25. Qxd6 {[%clk 0:01:18]} 25... Rxd6 {[%clk 0:00:23.4]} 26. Ba3
{[%clk 0:01:18]} 26... Rd2 {[%clk 0:00:22.6]} 27. Bxf8+ {[%clk 0:01:18.6]} 27...
Kxf8 {[%clk 0:00:22.6]} 28. Re2 {[%clk 0:01:17.2]} 28... Rd5 {[%clk 0:00:18.2]}
29. Bd3 {[%clk 0:01:04.1]} 29... f5 {[%clk 0:00:14]} 30. Rb1 {[%clk 0:01:02.1]}
30... Nf4 {[%clk 0:00:09]} 31. Ree1 {[%clk 0:01:02.3]} 31... Nxd3 {[%clk
0:00:07.1]} 32. cxd3 {[%clk 0:01:03.2]} 32... Rxd3 {[%clk 0:00:07.7]} 33. Rxe5
{[%clk 0:01:03]} 33... Rd6 {[%clk 0:00:04.1]} 34. Reb5 {[%clk 0:01:02.8]} 1-0

[Event "Late-Titled-Tuesday-Blitz-June-04-2024"]
[Site "Chess.com"]
[Date "2024.06.04"]
[Round "3"]
[White "LUISMIGUELOV"]
[Black "Kopytkin"]
[Result "0-1"]
[WhiteElo "2208"]
[BlackElo "2417"]
[TimeControl "180+1"]
[EndTime "14:26:55 PDT"]
[Termination "Kopytkin won by resignation"]

1. e4 {[%clk 0:02:54.4]} 1... Nf6 {[%clk 0:02:58.2]} 2. e5 {[%clk 0:02:53.5]}
2... Nd5 {[%clk 0:02:58.2]} 3. c4 {[%clk 0:02:53.9]} 3... Nb6 {[%clk 0:02:58.1]}
4. Nc3 {[%clk 0:02:54]} 4... d6 {[%clk 0:02:57.9]} 5. f4 {[%clk 0:02:53.4]} 5...
dxe5 {[%clk 0:02:56.1]} 6. fxe5 {[%clk 0:02:52.8]} 6... c5 {[%clk 0:02:56.7]} 7.
Nf3 {[%clk 0:02:51.3]} 7... Nc6 {[%clk 0:02:56.9]} 8. Nb5 {[%clk 0:02:46]} 8...
a6 {[%clk 0:02:55.3]} 9. Nc3 {[%clk 0:02:45.2]} 9... Bg4 {[%clk 0:02:55.8]} 10.
Ne4 {[%clk 0:02:41.2]} 10... e6 {[%clk 0:02:39.3]} 11. h3 {[%clk 0:02:36.1]}
11... Bh5 {[%clk 0:02:37.3]} 12. g4 {[%clk 0:02:31.1]} 12... Bg6 {[%clk
0:02:37.3]} 13. d3 {[%clk 0:02:25.4]} 13... Nd7 {[%clk 0:02:15.7]} 14. Bf4
{[%clk 0:02:24.5]} 14... Bxe4 {[%clk 0:02:10.9]} 15. dxe4 {[%clk 0:02:23.8]}
15... Qa5+ {[%clk 0:02:08.4]} 16. Qd2 {[%clk 0:02:18.3]} 16... Qxd2+ {[%clk
0:02:00.5]} 17. Kxd2 {[%clk 0:02:17.9]} 17... O-O-O {[%clk 0:01:59.4]} 18. Kc3
{[%clk 0:02:14.7]} 18... h6 {[%clk 0:01:59.4]} 19. Be2 {[%clk 0:02:11.3]} 19...
g5 {[%clk 0:01:59.2]} 20. Bg3 {[%clk 0:02:10.5]} 20... Bg7 {[%clk 0:01:59.7]}
21. Rhf1 {[%clk 0:02:06.4]} 21... Ndxe5 {[%clk 0:01:58.8]} 22. Nxe5 {[%clk
0:02:05.9]} 22... Bxe5+ {[%clk 0:01:57.8]} 23. Bxe5 {[%clk 0:02:03.9]} 23...
Nxe5 {[%clk 0:01:58.7]} 24. a3 {[%clk 0:01:59.5]} 24... Rd4 {[%clk 0:01:58.3]}
25. b4 {[%clk 0:01:48.9]} 25... b6 {[%clk 0:01:56.6]} 26. Rad1 {[%clk
0:01:29.3]} 26... Rhd8 {[%clk 0:01:48.7]} 27. Rxd4 {[%clk 0:01:25.3]} 27...
cxd4+ {[%clk 0:01:48.8]} 28. Kd2 {[%clk 0:01:22.5]} 28... d3 {[%clk 0:01:48.3]}
29. Bd1 {[%clk 0:01:15.4]} 29... Nxc4+ {[%clk 0:01:48.2]} 30. Kc3 {[%clk
0:01:14.8]} 30... Ne5 {[%clk 0:01:43.2]} 31. Rf6 {[%clk 0:01:06.9]} 31... Rh8
{[%clk 0:01:41]} 32. a4 {[%clk 0:01:01.5]} 32... Kd7 {[%clk 0:01:37.5]} 33. a5
{[%clk 0:00:54.8]} 33... bxa5 {[%clk 0:01:34.8]} 34. bxa5 {[%clk 0:00:54.7]}
34... Ke7 {[%clk 0:01:35]} 35. Rf2 {[%clk 0:00:49.1]} 35... Rc8+ {[%clk
0:01:34.6]} 36. Kd2 {[%clk 0:00:48.1]} 36... Rb8 {[%clk 0:01:31.3]} 37. Ke3
{[%clk 0:00:46.1]} 37... f6 {[%clk 0:01:28.1]} 38. Ra2 {[%clk 0:00:33.6]} 38...
Rb5 {[%clk 0:01:11.6]} 39. Ra4 {[%clk 0:00:31.4]} 39... Rxa5 {[%clk 0:01:07.5]}
40. Rxa5 {[%clk 0:00:30.1]} 40... Nc4+ {[%clk 0:01:07.7]} 41. Kxd3 {[%clk
0:00:30.1]} 41... Nxa5 {[%clk 0:01:08.6]} 42. Kd4 {[%clk 0:00:26.5]} 42... Kd6
{[%clk 0:01:07.7]} 43. e5+ {[%clk 0:00:25.7]} 43... fxe5+ {[%clk 0:01:08]} 44.
Ke4 {[%clk 0:00:25.2]} 44... Nb7 {[%clk 0:01:08.6]} 45. Ba4 {[%clk 0:00:23.6]}
45... Nc5+ {[%clk 0:01:08.4]} 0-1

[Event "Late-Titled-Tuesday-Blitz-June-04-2024"]
[Site "Chess.com"]
[Date "2024.06.04"]
[Round "3"]
[White "NikolaGry"]
[Black "garfield_pg"]
[Result "1-0"]
[WhiteElo "2697"]
[BlackElo "2471"]
[TimeControl "180+1"]
[EndTime "14:26:56 PDT"]
[Termination "NikolaGry won by resignation"]

1. b3 {[%clk 0:03:00.9]} 1... d5 {[%clk 0:02:59.2]} 2. Bb2 {[%clk 0:02:58.8]}
2... Bg4 {[%clk 0:02:59]} 3. Nf3 {[%clk 0:02:58.4]} 3... Nd7 {[%clk 0:02:57.6]}
4. e3 {[%clk 0:02:57.2]} 4... e5 {[%clk 0:02:51.1]} 5. h3 {[%clk 0:02:55.9]}
5... Bxf3 {[%clk 0:02:51]} 6. Qxf3 {[%clk 0:02:55]} 6... Ngf6 {[%clk 0:02:51.7]}
7. c4 {[%clk 0:02:52.1]} 7... c6 {[%clk 0:02:50.8]} 8. cxd5 {[%clk 0:02:51.6]}
8... cxd5 {[%clk 0:02:48.9]} 9. Bb5 {[%clk 0:02:50.3]} 9... Bd6 {[%clk
0:02:45.5]} 10. Nc3 {[%clk 0:02:47.7]} 10... e4 {[%clk 0:02:42.1]} 11. Qf5
{[%clk 0:02:40.5]} 11... a6 {[%clk 0:02:40.1]} 12. Bxd7+ {[%clk 0:02:36.4]}
12... Qxd7 {[%clk 0:02:41]} 13. Qg5 {[%clk 0:02:24.6]} 13... Qe6 {[%clk
0:02:29.5]} 14. Na4 {[%clk 0:02:13]} 14... Nd7 {[%clk 0:01:12.7]} 15. Qxg7
{[%clk 0:01:55.9]} 15... O-O-O {[%clk 0:01:12.3]} 16. Qg4 {[%clk 0:01:53.8]}
16... f5 {[%clk 0:01:10.6]} 17. Qe2 {[%clk 0:01:53.1]} 17... Rhg8 {[%clk
0:01:08]} 18. g3 {[%clk 0:01:51.7]} 18... Ne5 {[%clk 0:00:31.5]} 19. Rc1+ {[%clk
0:01:39.9]} 19... Kb8 {[%clk 0:00:31.3]} 20. Bxe5 {[%clk 0:01:39.1]} 20... Bxe5
{[%clk 0:00:31.4]} 21. Nc5 {[%clk 0:01:27.8]} 21... Qb6 {[%clk 0:00:31]} 22. d4
{[%clk 0:01:27]} 22... exd3 {[%clk 0:00:17.8]} 23. Nxd3 {[%clk 0:01:25.3]} 23...
Bf6 {[%clk 0:00:14.2]} 24. Kf1 {[%clk 0:01:22.3]} 24... d4 {[%clk 0:00:14]} 25.
e4 {[%clk 0:01:21.7]} 25... Rge8 {[%clk 0:00:12.9]} 26. e5 {[%clk 0:01:20.9]}
26... Qb5 {[%clk 0:00:07.5]} 27. f4 {[%clk 0:01:18.7]} 27... Qd5 {[%clk
0:00:06.3]} 28. Kf2 {[%clk 0:01:12.2]} 28... Re6 {[%clk 0:00:06.1]} 29. Qf3
{[%clk 0:01:08.9]} 29... Qxf3+ {[%clk 0:00:03.9]} 30. Kxf3 {[%clk 0:01:08.5]}
30... Be7 {[%clk 0:00:04.8]} 31. Rc4 {[%clk 0:01:05]} 31... Ba3 {[%clk
0:00:02.2]} 32. g4 {[%clk 0:01:01.2]} 32... fxg4+ {[%clk 0:00:02.1]} 33. hxg4
{[%clk 0:01:00.5]} 33... Rd5 {[%clk 0:00:02.6]} 1-0

[Event "Late-Titled-Tuesday-Blitz-June-04-2024"]
[Site "Chess.com"]
[Date "2024.06.04"]
[Round "3"]
[White "osh1ro"]
[Black "Supelyel"]
[Result "1-0"]
[WhiteElo "2621"]
[BlackElo "2431"]
[TimeControl "180+1"]
[EndTime "14:26:56 PDT"]
[Termination "osh1ro won by resignation"]

1. d4 {[%clk 0:03:00.9]} 1... d6 {[%clk 0:02:59.6]} 2. Nf3 {[%clk 0:02:58.3]}
2... Nf6 {[%clk 0:02:59.3]} 3. g3 {[%clk 0:02:57.9]} 3... Nbd7 {[%clk
0:02:59.5]} 4. Bg2 {[%clk 0:02:57.5]} 4... e5 {[%clk 0:02:59.6]} 5. c4 {[%clk
0:02:54.5]} 5... c6 {[%clk 0:02:59.4]} 6. Nc3 {[%clk 0:02:54]} 6... Be7 {[%clk
0:02:59.2]} 7. e4 {[%clk 0:02:54]} 7... O-O {[%clk 0:02:59.4]} 8. O-O {[%clk
0:02:53.2]} 8... a6 {[%clk 0:02:59.4]} 9. a4 {[%clk 0:02:50.1]} 9... a5 {[%clk
0:02:58.7]} 10. Qc2 {[%clk 0:02:48.2]} 10... Re8 {[%clk 0:02:57.2]} 11. Rd1
{[%clk 0:02:47.2]} 11... Qc7 {[%clk 0:02:55]} 12. h3 {[%clk 0:02:47.7]} 12... h6
{[%clk 0:02:54.1]} 13. Be3 {[%clk 0:02:47.2]} 13... b6 {[%clk 0:02:39.8]} 14.
Nh4 {[%clk 0:02:17.4]} 14... Bf8 {[%clk 0:02:34.1]} 15. Nf5 {[%clk 0:02:15.9]}
15... Ba6 {[%clk 0:02:23.5]} 16. b3 {[%clk 0:02:15.3]} 16... Rad8 {[%clk
0:02:12.2]} 17. Rd2 {[%clk 0:02:14.2]} 17... Bb7 {[%clk 0:02:00.2]} 18. Rad1
{[%clk 0:02:10.8]} 18... Kh7 {[%clk 0:01:34.2]} 19. f4 {[%clk 0:01:40.7]} 19...
g6 {[%clk 0:01:02.5]} 20. dxe5 {[%clk 0:01:26.4]} 20... dxe5 {[%clk 0:00:51.7]}
21. Nd6 {[%clk 0:01:26.1]} 21... Bxd6 {[%clk 0:00:34.5]} 22. Rxd6 {[%clk
0:01:27]} 22... Nd5 {[%clk 0:00:25.8]} 23. exd5 {[%clk 0:01:16.2]} 23... Qxd6
{[%clk 0:00:25.6]} 24. dxc6 {[%clk 0:01:16.6]} 24... Qc7 {[%clk 0:00:22.9]} 25.
cxb7 {[%clk 0:01:12.5]} 25... Nc5 {[%clk 0:00:23.2]} 26. Nd5 {[%clk 0:01:06.9]}
26... Qd6 {[%clk 0:00:16]} 27. fxe5 {[%clk 0:01:07.3]} 27... Qxe5 {[%clk
0:00:15.7]} 28. Bd4 {[%clk 0:01:05.3]} 28... Rxd5 {[%clk 0:00:06.6]} 29. Bxe5
{[%clk 0:00:51.8]} 29... Rdxe5 {[%clk 0:00:07.5]} 30. Qf2 {[%clk 0:00:49.6]}
30... Kg7 {[%clk 0:00:06.9]} 31. Rf1 {[%clk 0:00:48.9]} 31... f6 {[%clk
0:00:06.3]} 32. Qxf6+ {[%clk 0:00:48.6]} 1-0

[Event "Late-Titled-Tuesday-Blitz-June-04-2024"]
[Site "Chess.com"]
[Date "2024.06.04"]
[Round "3"]
[White "PapaieDudu"]
[Black "Synctel"]
[Result "0-1"]
[WhiteElo "2332"]
[BlackElo "2077"]
[TimeControl "180+1"]
[EndTime "14:26:58 PDT"]
[Termination "Synctel won on time"]

1. e4 {[%clk 0:02:19.6]} 1... e6 {[%clk 0:02:59.2]} 2. d4 {[%clk 0:02:17.4]}
2... d5 {[%clk 0:02:59.6]} 3. Nc3 {[%clk 0:02:13]} 3... Nf6 {[%clk 0:02:59]} 4.
e5 {[%clk 0:01:03]} 4... Nfd7 {[%clk 0:02:57.8]} 5. h4 {[%clk 0:00:51.3]} 5...
c5 {[%clk 0:02:54]} 6. Be3 {[%clk 0:00:49.5]} 6... Nc6 {[%clk 0:02:51.9]} 7. Bb5
{[%clk 0:00:45.4]} 7... Qb6 {[%clk 0:02:45.3]} 8. Nf3 {[%clk 0:00:35.6]} 8... a6
{[%clk 0:02:25.9]} 9. Ba4 {[%clk 0:00:34.7]} 9... Qa5 {[%clk 0:02:16.2]} 10. a3
{[%clk 0:00:28.2]} 10... cxd4 {[%clk 0:01:55.4]} 11. Nxd4 {[%clk 0:00:25.3]}
11... Ncxe5 {[%clk 0:01:42.7]} 12. b4 {[%clk 0:00:14.5]} 12... Qc7 {[%clk
0:01:36.6]} 13. Nxe6 {[%clk 0:00:14.1]} 13... fxe6 {[%clk 0:01:16.4]} 14. Qh5+
{[%clk 0:00:14.3]} 14... g6 {[%clk 0:01:11.9]} 15. Qd1 {[%clk 0:00:09.6]} 15...
Qxc3+ {[%clk 0:01:11.2]} 16. Bd2 {[%clk 0:00:09.7]} 16... Qd4 {[%clk 0:01:09.8]}
17. O-O {[%clk 0:00:08.4]} 17... Qxh4 {[%clk 0:01:07.5]} 18. g3 {[%clk
0:00:07.7]} 18... Qh3 {[%clk 0:01:05.4]} 19. Qe2 {[%clk 0:00:02.3]} 19... Bg7
{[%clk 0:00:49]} 20. f4 {[%clk 0:00:01.7]} 20... Nc4 {[%clk 0:00:37.1]} 21. c3
{[%clk 0:00:01.1]} 21... Nxd2 {[%clk 0:00:34.1]} 0-1

[Event "Late-Titled-Tuesday-Blitz-June-04-2024"]
[Site "Chess.com"]
[Date "2024.06.04"]
[Round "3"]
[White "Artyom_ChessMate"]
[Black "Naruna_Chan"]
[Result "1-0"]
[WhiteElo "2541"]
[BlackElo "2279"]
[TimeControl "180+1"]
[EndTime "14:27:04 PDT"]
[Termination "Artyom_ChessMate won by resignation"]

1. e4 {[%clk 0:03:00.9]} 1... c5 {[%clk 0:03:00.5]} 2. Nc3 {[%clk 0:03:00.6]}
2... Nc6 {[%clk 0:03:00.3]} 3. Bb5 {[%clk 0:03:00.3]} 3... e5 {[%clk 0:02:56.7]}
4. Bxc6 {[%clk 0:02:59]} 4... bxc6 {[%clk 0:02:57]} 5. d3 {[%clk 0:02:58.8]}
5... d6 {[%clk 0:02:57.4]} 6. f4 {[%clk 0:02:58.6]} 6... exf4 {[%clk 0:02:56.7]}
7. Bxf4 {[%clk 0:02:57.9]} 7... Be7 {[%clk 0:02:56.9]} 8. Nf3 {[%clk 0:02:57.2]}
8... Nf6 {[%clk 0:02:51.8]} 9. O-O {[%clk 0:02:57.4]} 9... O-O {[%clk
0:02:51.6]} 10. e5 {[%clk 0:02:56]} 10... Ng4 {[%clk 0:02:41.5]} 11. exd6 {[%clk
0:02:47.9]} 11... Bxd6 {[%clk 0:02:40.1]} 12. Bxd6 {[%clk 0:02:48.8]} 12... Qxd6
{[%clk 0:02:40.3]} 13. Qe1 {[%clk 0:02:41.8]} 13... Be6 {[%clk 0:02:21.1]} 14.
Ne4 {[%clk 0:02:40.2]} 14... Qd5 {[%clk 0:02:15.1]} 15. h3 {[%clk 0:02:41.1]}
15... Nh6 {[%clk 0:02:14.5]} 16. b3 {[%clk 0:02:36.3]} 16... Bf5 {[%clk
0:01:40]} 17. Nfd2 {[%clk 0:02:22.9]} 17... Rae8 {[%clk 0:01:27]} 18. Qf2 {[%clk
0:02:20.1]} 18... Bg6 {[%clk 0:01:24.5]} 19. Qxc5 {[%clk 0:02:14.7]} 19... Qd7
{[%clk 0:00:37.9]} 20. Rae1 {[%clk 0:02:08.9]} 20... Nf5 {[%clk 0:00:36]} 21.
Nc4 {[%clk 0:02:03.4]} 21... Qd4+ {[%clk 0:00:32.3]} 22. Qxd4 {[%clk 0:01:47.3]}
22... Nxd4 {[%clk 0:00:33.2]} 23. Ncd6 {[%clk 0:01:35.7]} 23... Re6 {[%clk
0:00:29.5]} 24. c3 {[%clk 0:01:33.3]} 24... Nb5 {[%clk 0:00:27.3]} 25. Nxb5
{[%clk 0:01:30.4]} 25... cxb5 {[%clk 0:00:28.2]} 26. Nc5 {[%clk 0:01:30.5]}
26... Rd6 {[%clk 0:00:23.1]} 27. d4 {[%clk 0:01:30.5]} 27... b4 {[%clk
0:00:22.9]} 28. cxb4 {[%clk 0:01:20.4]} 28... Rxd4 {[%clk 0:00:22.7]} 29. a3
{[%clk 0:01:21.3]} 29... h6 {[%clk 0:00:20.4]} 30. Re7 {[%clk 0:01:20.8]} 30...
Ra8 {[%clk 0:00:17.7]} 31. Rb7 {[%clk 0:01:14.4]} 31... a5 {[%clk 0:00:17.3]}
32. b5 {[%clk 0:01:09.7]} 32... Rd5 {[%clk 0:00:12.4]} 33. Rc7 {[%clk
0:01:03.2]} 33... Bc2 {[%clk 0:00:09.1]} 34. b6 {[%clk 0:00:59.7]} 34... Rb8
{[%clk 0:00:08.3]} 35. b7 {[%clk 0:00:59.6]} 35... Rdd8 {[%clk 0:00:08.3]} 36.
Rc1 {[%clk 0:00:58.4]} 36... Bg6 {[%clk 0:00:08.3]} 37. Na6 {[%clk 0:00:58.2]}
1-0